Cogmind - Beta 15 @@@ ROGUE MODE // 2025.09.27 @ 22:40:49 Player: kiul Result: Destroyed by S-27 Virus with Autogun Performance ------------- Evolutions (5) 2500 Regions Visited (6) 1200 Robots Destroyed (25) 125 Value Destroyed (1194) 1194 Prototype IDs (3) 60 Alien Tech Used (0) 0 Bonus (0) 0 TOTAL SCORE: 5079 Bonus ------- None Cogmind --------- Core Integrity 0/1000 Matter 113/300 Energy 98/100 System Corruption 4% Temperature Cool (0) Movement Core (50) Location -5/Upper Caves Parts ------- > --- POWER (2) -------- (None) > --- PROPULSION (4) --- (None) > --- UTILITY (8) ------ Enhanced Optical Array Makeshift Terrain Scan Processor Targeting Computer Advanced System Shield > --- WEAPON (3) ------- (None) > --- INVENTORY (5) ---- Fission Core Improved Field Recycling Unit (17) Heavy Ion Cannon Peak State ------------ > --- POWER ------------ Ion Engine Micro Fission Core > --- PROPULSION ------- Gravmag System Antigrav System Antigrav System Gyrokinetic Inverter > --- UTILITY ---------- Advanced Heat Sink Small Storage Unit Small Matter Pod Advanced Sensor Array Targeting Computer Improved Weapon Cycler Advanced System Shield > --- WEAPON ----------- Plasma Rifle Advanced Plasma Cannon Rocket Launcher > --- INVENTORY -------- Light Ion Engine Improved Aluminum Leg Improved Field Recycling Unit High-powered Shock Rifle Heavy Ion Cannon Rocket Launcher [Rating: 68] Favorites ----------- Power Light Ion Engine Engine Light Ion Engine Power Core Fission Core Propulsion Improved Aluminum Leg Leg Improved Aluminum Leg Hover Unit Gravmag System Utility Targeting Computer Device Advanced Heat Sink Storage Small Storage Unit Processor Targeting Computer Hackware Advanced System Shield Protection Hardened Medium Armor Plating Weapon Rocket Launcher Energy Gun Plasma Rifle Energy Cannon Heavy Ion Cannon Ballistic Gun KE Penetrator Launcher Rocket Launcher Impact Weapon Maul Build | -11 -10 -10 -7 -5 -5 -5 ------- Run | Yrd Mat Sub Rec Fac Upp Upp Slots Evolved 10 | . . . . 10 . . Power 1 | . . . . 1 . . Propulsion 2 | . . . . 2 . . Utility 6 | . . . . 6 . . Weapon 1 | . . . . 1 . . Parts Attached 44 | 6 4 . 3 26 5 . Power 4 | 1 . . . 2 1 . Engine 2 | 1 . . . 1 . . Core 2 | . . . . 1 1 . Reactor . | . . . . . . . Propulsion 10 | 2 2 . 2 4 . . Treads . | . . . . . . . Leg 5 | 2 2 . . 1 . . Wheel . | . . . . . . . Hover 5 | . . . 2 3 . . Flight . | . . . . . . . Utility 16 | 1 1 . . 13 1 . Device 7 | . . . . 7 . . Storage 2 | 1 . . . 1 . . Processor 4 | . 1 . . 2 1 . Hackware 1 | . . . . 1 . . Protection 2 | . . . . 2 . . Artifact . | . . . . . . . Weapon 14 | 2 1 . 1 7 3 . Energy Gun 2 | . . . . 2 . . Energy Cannon 2 | . . . 1 1 . . Ballistic Gun 4 | 2 . . . 2 . . Ballistic Cannon . | . . . . . . . Launcher 5 | . 1 . . 2 2 . Special Weapon . | . . . . . . . Impact Weapon 1 | . . . . . 1 . Slashing Weapon . | . . . . . . . Piercing Weapon . | . . . . . . . Special Melee Weapon . | . . . . . . . Unidentified Prototypes . | . . . . . . . Parts Lost 27 | . . . . 18 2 7 Power 3 | . . . . 2 . 1 Propulsion 6 | . . . . 5 . 1 Utility 10 | . . . . 7 . 3 Weapon 8 | . . . . 4 2 2 Highest Loss Streak 5 | . . . . 5 1 5 To Critical Strikes 1 | . . . . 1 . . Average Backups 4 | . 4 6 7 5 2 2 Power . | . 1 1 1 . . . Propulsion . | . 1 2 2 . . . Utility 1 | . . 1 2 1 1 1 Weapon 2 | . 1 2 2 3 1 1 Tool/Special . | . . . . . . . Unused Backups 4 | . . . 2 2 . . Power . | . . . . . . . Propulsion 1 | . . . 1 . . . Utility 1 | . . . 1 . . . Weapon 2 | . . . . 2 . . Tool/Special . | . . . . . . . Average Slot Usage (%) 80 | . 88 100 100 84 60 45 Engine 7 | . 14 14 14 7 2 . Core 1 | . . . . . 2 1 Leg 10 | . 28 28 25 6 . . Hover 6 | . . . 2 12 5 . Device 8 | . . . . 18 5 1 Storage 8 | . 14 14 14 5 5 1 Processor 12 | . 3 14 14 6 20 23 Hackware 2 | . . . . 1 5 5 Protection 1 | . . . . 3 . . Energy Gun 1 | . . . . 1 2 2 Energy Cannon 1 | . . . 4 2 . . Ballistic Gun 5 | . 18 14 9 4 . . Launcher 7 | . 9 14 14 4 4 . Peak Build Rating 68 | 6 11 11 19 68 42 42 Average Rating 33 | 4 9 11 13 51 37 22 On Entrance 16 | . 6 11 11 19 27 42 Naked Turns . | . . . . . . . Heaviest Build 67 | 12 14 14 20 67 26 26 Greatest Support 42 | 20 26 26 26 42 11 11 Greatest Overweight (x) 8 | . . . 1 5 6 8 Average Overweight (x) . | . . . . 1 2 . Largest Inventory Capacity 8 | 8 8 8 8 8 8 8 Average Capacity 7 | 6 8 8 8 8 8 5 Most Carried 8 | 1 6 6 8 8 5 3 Average Carried 4 | . 4 6 7 5 2 2 Final Capacity 8 | 8 8 8 8 8 8 5 Final Carried 8 | 1 6 6 8 6 2 3 Class Distribution -------------------- 67% | Mutant 22% | Bomber 6% | Scavenger-Bomber 3% | Scavenger-Mutant Dominant Class ---------------- Mutant | -10/Materials Mutant | -10/Subcaves Mutant | -7/Recycling Bomber | -5/Factory Mutant | -5/Upper Caves Mutant | -5/Upper Caves Resources | -11 -10 -10 -7 -5 -5 -5 ----------- Run | Yrd Mat Sub Rec Fac Upp Upp Matter Collected 1024 | 231 . 52 175 355 154 57 Remotely . | . . . . . . . Salvage Created 854 | . . 11 . 644 199 . Parts 43 | . . 6 . 28 9 . Haulers Intercepted . | . . . . . . . Recyclers Shooed . | . . . . . . . Parts Field Recycled 1 | . . . . 1 . . Retrieved Matter 21 | . . . . 21 . . Parts Self-Destructed 16 | . . 9 . . 7 . Prevented . | . . . . . . . Kills | -11 -10 -10 -7 -5 -5 -5 ------- Run | Yrd Mat Sub Rec Fac Upp Upp Combat Hostiles Destroyed 21 | . . 3 . 12 6 . Guns 5 | . . . . 5 . . Cannons 4 | . . . . 4 . . AOE 11 | . . 3 . 2 6 . Classes Destroyed 8 | . . 2 . 6 . . Worker 1 | . . . . 1 . . Operator 1 | . . . . 1 . . Turret 2 | . . 2 . . . . Swarmer 3 | . . 3 . . . . Grunt 14 | . . . . 8 6 . Brawler 1 | . . . . 1 . . Hunter 1 | . . . . 1 . . Programmer 2 | . . . . 2 . . Best Kill Streak 5 | . . 3 . 5 3 . Combat Bots Only 5 | . . 3 . 5 3 . Max Kills in Single Turn 3 | . . 2 . 3 2 . Gunslinging . | . . . . . . . Exploded 2 | . . 2 . 2 2 . Melee . | . . . . . . . Uniques/NPCs Destroyed . | . . . . . . . Combat | -11 -10 -10 -7 -5 -5 -5 -------- Run | Yrd Mat Sub Rec Fac Upp Upp Hostile Shots Fired 258 | . . 64 . 117 13 64 Missed 89 | . . 29 . 33 6 21 Hits 169 | . . 35 . 84 7 43 Projectile 169 | . . 35 . 84 7 43 Critical Strikes 11 | . . . . 5 . 6 Damage Taken 3215 | . . 307 . 1894 242 772 Core 1071 | . . 60 . 481 58 472 Absorbed by Shields . | . . . . . . . Core Remaining (%) 88 | 100 . . 76 . . . Volleys Fired 45 | . . 10 . 29 6 . Largest 3 | . . 2 . 3 2 . Hottest 206 | . . 53 . 206 78 . Shots Fired 99 | . . 20 . 67 12 . Gun 45 | . . 10 . 35 . . Cannon 20 | . . . . 20 . . Launcher 34 | . . 10 . 12 12 . Special . | . . . . . . . Kinetic 25 | . . 10 . 15 . . Thermal 36 | . . . . 36 . . Explosive 34 | . . 10 . 12 12 . Electromagnetic 4 | . . . . 4 . . Robot Hit Streak 12 | . . 12 . 7 4 . Robot Miss Streak 3 | . . 1 . 3 1 . Penetration Max 1 | . . . . 1 . . Secondary Targets . | . . . . . . . Shots Hit Robots 62 | . . 16 . 38 7 1 Core Hits 54 | . . 10 1 32 11 . Critical Kills . | . . . . . . . Critical Parts Destroyed . | . . . . . . . Critical Strikes 1 | . . . . 1 . . Burn 1 | . . . . 1 . . Melee Attacks 1 | . . . . . . 1 Impact 1 | . . . . . . 1 Slashing . | . . . . . . . Piercing . | . . . . . . . Sneak Attacks . | . . . . . . . Combat Hostiles . | . . . . . . . Follow-up Attacks . | . . . . . . . Damage Inflicted 3359 | . 8 638 24 1775 868 46 Guns 688 | . . 89 . 599 . . Cannons 441 | . . . . 441 . . Explosions 2138 | . . 549 . 721 868 . Melee 46 | . . . . . . 46 Ramming 46 | . 8 . 24 14 . . Kinetic 416 | . . 89 . 327 . . Thermal 639 | . . . . 639 . . Explosive 2138 | . . 549 . 721 868 . Electromagnetic 74 | . . . . 74 . . Impact 46 | . . . . . . 46 Slashing . | . . . . . . . Piercing . | . . . . . . . Highest Corruption 4 | . . . . 4 4 4 Average Corruption 3 | . . . . 3 4 4 Corruption Purged . | . . . . . . . Corruption Blocked . | . . . . . . . Effects 38 | . . . . 19 19 . Message Errors 5 | . . . . 3 2 . Matter Fused 10 | . . . . 5 5 . Heat Flow Errors 7 | . . . . 3 4 . Energy Discharges 5 | . . . . 3 2 . Parts Rejected 1 | . . . . 1 . . Parts Fused 2 | . . . . 1 1 . Data Loss (minor) 4 | . . . . 1 3 . Misfires 2 | . . . . 1 1 . Alerts 1 | . . . . . 1 . Weapon Failures 1 | . . . . 1 . . Overload Shots . | . . . . . . . Overflow Damage 107 | . . 47 . . 60 . Projectiles . | . . . . . . . Explosions 107 | . . 47 . . 60 . Melee . | . . . . . . . Knockbacks . | . . . . . . . Impact . | . . . . . . . Kinetic . | . . . . . . . Secondary . | . . . . . . . Self-Inflicted Damage 306 | . . . . 196 110 . Shots 9 | . . . . 5 4 . Rammed 1 | . . . . 1 . . Targets Rammed 6 | . 1 . 3 2 . . Kicked 5 | . 1 . 3 1 . . Crushed . | . . . . . . . Highest Temperature 685 | . . 7 . 685 224 30 Average Temperature 157 | . . 4 . 166 94 17 Received Heat Transfer 982 | . . 198 . 351 54 379 Effects 23 | . . . . 23 . . Shutdowns 6 | . . . . 6 . . Energy Bleed 2 | . . . . 2 . . Interference 3 | . . . . 3 . . Matter Decay 2 | . . . . 2 . . Short Circuit 4 | . . . . 4 . . Damage (minor) 1 | . . . . 1 . . Damage (major) 5 | . . . . 5 . . Siege Activations . | . . . . . . . Martial Activations . | . . . . . . . Shielding Activations . | . . . . . . . Robots Disrupted . | . . . . . . . Combat Hostiles . | . . . . . . . Robots Corrupted . | . . . . . . . Combat Hostiles . | . . . . . . . Parts Fried . | . . . . . . . Impact Corruptions . | . . . . . . . Robots Melted 1 | . . . . 1 . . Combat Hostiles 1 | . . . . 1 . . Parts Melted 1 | . . . . 1 . . Heat Transferred 1198 | . . . . 1198 . . Parts Sabotaged . | . . . . . . . Parts Stolen . | . . . . . . . Parts Stripped . | . . . . . . . Power Chain Reactions . | . . . . . . . Alert | -11 -10 -10 -7 -5 -5 -5 ------- Run | Yrd Mat Sub Rec Fac Upp Upp Maximum Alert Level 1 | . . . . 1 . . Low Security (%) 98 | 100 100 . 100 96 . . Level 1 1 | . . . . 3 . . Level 2 . | . . . . . . . Level 3 . | . . . . . . . Level 4 . | . . . . . . . Level 5 . | . . . . . . . High Security . | . . . . . . . Max Security . | . . . . . . . Peak Influence 228 | . 8 . 53 228 . . Initial 50 | . . . 50 50 . . Average 42 | . . . 7 66 . . Influence Increases 954 | . 8 145 17 569 140 75 Destroy 0b10 Robot/C 460 | . . 100 . 240 120 . Destroy 0b10 Robot/NC 10 | . . . . 10 . . Destroy Leader 60 | . . . . 40 20 . Successful Hack 25 | . 8 . 17 . . . Disable Machine 105 | . . . . 105 . . Destroy Structure 94 | . . . . 94 . . Advance Influence 50 | . . . . 50 . . Lose Combat Pursuer 150 | . . 45 . 30 . 75 Influence Decreases 909 | . 8 40 122 413 296 30 Entered New Map 113 | . . . 55 . 58 . Time Decay 576 | . 8 40 67 233 218 10 Lost Part 220 | . . . . 180 20 20 Squads Dispatched 4 | . . . . 4 . . Investigation . | . . . . . . . Extermination 2 | . . . . 2 . . Reinforcement 2 | . . . . 2 . . Assault . | . . . . . . . Garrison . | . . . . . . . Intercept . | . . . . . . . Searches Triggered . | . . . . . . . Construction Impeded . | . . . . . . . Haulers Reinforced 1 | . . . . 1 . . Active Scanning Responses . | . . . . . . . Cargo Convoy Interrupts . | . . . . . . . Stealth | -11 -10 -10 -7 -5 -5 -5 --------- Run | Yrd Mat Sub Rec Fac Upp Upp Distress Signals 1 | . . . . 1 . . Communications Jammed . | . . . . . . . Distress Signals . | . . . . . . . Times Spotted 48 | . . 7 . 21 6 14 Peak Tracking Total 11 | . . 7 . 7 3 11 Tactical Retreats 3 | . . 1 . 1 . 1 Traps | -11 -10 -10 -7 -5 -5 -5 ------- Run | Yrd Mat Sub Rec Fac Upp Upp Traps Triggered 3 | . . . . 3 . . Indirectly . | . . . . . . . Trap Hack Attempts . | . . . . . . . Triggered . | . . . . . . . Disarmed . | . . . . . . . Reprogrammed . | . . . . . . . Reused . | . . . . . . . Traps Extracted . | . . . . . . . Installed . | . . . . . . . Triggered . | . . . . . . . Machines | -11 -10 -10 -7 -5 -5 -5 ---------- Run | Yrd Mat Sub Rec Fac Upp Upp Machines Disabled 11 | . . 4 . 7 . . Max in Single Turn 2 | . . 2 . 2 . . Machines Repaired . | . . . . . . . Machines Dismantled . | . . . . . . . Machines Sabotaged . | . . . . . . . Overloaded Fab Kills . | . . . . . . . Hacking | -11 -10 -10 -7 -5 -5 -5 --------- Run | Yrd Mat Sub Rec Fac Upp Upp Machines Accessed 9 | . 1 . 8 . . . Terminals 4 | . 1 . 3 . . . Fabricators . | . . . . . . . Repair Stations . | . . . . . . . Recycling Units 5 | . . . 5 . . . Scanalyzers . | . . . . . . . Garrison Access . | . . . . . . . Total Hacks 21 | . 4 . 17 . . . Successful 13 | . 1 . 12 . . . Failed 8 | . 3 . 5 . . . Catastrophic 3 | . . . 3 . . . Database Lockouts . | . . . . . . . Manual 8 | . 4 . 4 . . . Terminals 8 | . 4 . 4 . . . Fabricators . | . . . . . . . Repair Stations . | . . . . . . . Recycling Units 13 | . . . 13 . . . Scanalyzers . | . . . . . . . Garrison Access . | . . . . . . . Terminal Hacks 2 | . 1 . 1 . . . Prototype ID Bank 1 | . . . 1 . . . Registered Components 1 | . 1 . . . . . Fabricator Hacks . | . . . . . . . Repair Station Hacks . | . . . . . . . Recycling Unit Hacks 10 | . . . 10 . . . Report Inventory 4 | . . . 4 . . . Retrieve Matter 1 | . . . 1 . . . Retrieve Components 5 | . . . 5 . . . Scanalyzer . | . . . . . . . Garrison Access Hacks . | . . . . . . . Unauthorized Hacks 1 | . . . 1 . . . Terminals . | . . . . . . . Fabricators . | . . . . . . . Repair Stations . | . . . . . . . Recycling Units 1 | . . . 1 . . . Monitor 1 | . . . 1 . . . Scanalyzers . | . . . . . . . Garrison Access . | . . . . . . . Data Cores Recovered 1 | . . . . 1 . . Used . | . . . . . . . Hacking Detections 8 | . 1 . 7 . . . Full Trace Events 1 | . . . 1 . . . Feedback Events . | . . . . . . . Feedback Blocked . | . . . . . . . Robot Schematics Acquired . | . . . . . . . Robots Built . | . . . . . . . Authchips . | . . . . . . . Time . | . . . . . . . Total Robot Build Rating . | . . . . . . . Part Schematics Acquired . | . . . . . . . Parts Built . | . . . . . . . Authchips . | . . . . . . . Time . | . . . . . . . Total Part Build Rating . | . . . . . . . Parts Repaired . | . . . . . . . Time . | . . . . . . . Parts Recycled . | . . . . . . . Recycled Matter . | . . . . . . . Retrieved Matter . | . . . . . . . Retrieved Components 12 | . . . 12 . . . Parts Scanalyzed . | . . . . . . . Part Schematics Acquired . | . . . . . . . Parts Damaged . | . . . . . . . Bothacking | -11 -10 -10 -7 -5 -5 -5 ------------ Run | Yrd Mat Sub Rec Fac Upp Upp Used RIF Installer . | . . . . . . . Robots Hacked . | . . . . . . . Non-combat . | . . . . . . . Combat . | . . . . . . . Robot Hacks Applied . | . . . . . . . Relay Couplers Released . | . . . . . . . Fabnet Peak Effective % . | . . . . . . . Robots Rewired . | . . . . . . . Allies Hacked . | . . . . . . . Hacks Repelled . | . . . . . . . Allies | -11 -10 -10 -7 -5 -5 -5 -------- Run | Yrd Mat Sub Rec Fac Upp Upp Total Allies . | . . . . . . . Largest Group . | . . . . . . . Highest-Rated Group . | . . . . . . . Highest-Rated Ally . | . . . . . . . Total Orders . | . . . . . . . Ally Attacks . | . . . . . . . Total Damage . | . . . . . . . Kills . | . . . . . . . Allies Corrupted . | . . . . . . . Allies Melted . | . . . . . . . Intel | -11 -10 -10 -7 -5 -5 -5 ------- Run | Yrd Mat Sub Rec Fac Upp Upp Active Infowar (turns) 1425 | . . . . 691 683 51 Optics 823 | . . . . 89 683 51 Sensors 602 | . . . . 602 . . Robot Analysis Total . | . . . . . . . Derelict Logs Recovered 1 | . . 1 . . . . Drone Launches . | . . . . . . . Drone Recoveries . | . . . . . . . Exploration | -11 -10 -10 -7 -5 -5 -5 ------------- Run | Yrd Mat Sub Rec Fac Upp Upp Turns Passed 2477 | 73 124 167 434 945 683 51 Spaces Moved 1519 | 54 93 111 353 451 387 70 Core 109 | 1 . . . 8 31 69 Treads . | . . . . . . . Legs 802 | 53 93 111 313 232 . . Wheels . | . . . . . . . Hover 608 | . . . 40 211 356 1 Flight . | . . . . . . . Fastest Speed 50 | 50 120 120 116 50 70 50 Average Speed 137 | 118 120 120 119 160 153 65 Slowest Speed 450 | 120 120 120 120 290 350 450 Overloaded Moves . | . . . . . . . Propulsion Burnouts . | . . . . . . . Robots Hopped . | . . . . . . . Potential Cave-ins . | . . . . . . . Cave-ins Triggered . | . . . . . . . Exploration Rate (%) 26 | 4 9 15 52 12 69 26 Regions Visited 6 Branch Regions 4 Pre-discovered Areas 1 | . . 1 . . . . Known Exits Taken . | . . . . . . . Unknown Exits Taken 6 | 1 1 1 1 1 1 . Scrap Searched 2 | . . . . . 1 1 Spaces Dug . | . . . . . . . Terrain Destroyed 229 | . . 30 . 53 146 . Melee . | . . . . . . . Projectile 5 | . . . . 5 . . AOE 224 | . . 30 . 48 146 . Terrain Rammed . | . . . . . . . Walls Destroyed . | . . . . . . . Machines Disabled . | . . . . . . . Actions | -11 -10 -10 -7 -5 -5 -5 --------- Run | Yrd Mat Sub Rec Fac Upp Upp Total 1810 | 60 104 125 364 621 462 74 Wait 138 | . . 5 . 68 63 2 Move 1514 | 53 92 110 352 451 386 70 Hop . | . . . . . . . Pick Up 24 | 1 5 . 4 14 . . Fast Attach 25 | 6 1 . . 15 3 . Attach 22 | . . . . 18 4 . Detach 3 | . . . . 2 . 1 Swap 13 | . 3 . 3 7 . . Drop 20 | . 2 . 2 16 . . Fire 45 | . . 10 . 29 6 . Melee 1 | . . . . . . 1 Ram . | . . . . . . . Kick 5 | . 1 . 3 1 . . Crush . | . . . . . . . Escape Stasis . | . . . . . . . Rewire . | . . . . . . . Trap . | . . . . . . . Miscellaneous . | . . . . . . . Route ------- -11/Scrapyard -10/Materials -10/Subcaves -7/Recycling -5/Factory -5/Upper Caves -5/Upper Caves History --------- Turn | Location | Event 7 | -11/Scrapyard | Discovered new exit (range 15) 74 | -11/Scrapyard | Entered Materials 148 | -10/Materials | Discovered new exit (range 10) 198 | -10/Materials | Entered Subcaves 199 | -10/Subcaves | Approached by a straggling Scientist 278 | -10/Subcaves | Learned location of Zion (-6) 314 | -10/Subcaves | Build established: Mutant 334 | -10/Subcaves | Discovered new exit (range 14) 365 | -10/Subcaves | Entered Recycling 791 | -7/Recycling | Discovered new exit (range 5) 799 | -7/Recycling | Entered Factory 799 | -5/Factory | Evolved 10 slots: Power x1, Propulsion x2, Utility x6, Weapon x1 1095 | -5/Factory | Build established: Bomber 1349 | -5/Factory | Lost 3 parts (1n2u) 1537 | -5/Factory | Lost 5 parts (1p1n2u1w) 1645 | -5/Factory | Lost 5 parts (1p2n1u1w) 1725 | -5/Factory | Discovered new exit (range 14) 1744 | -5/Factory | Entered Upper Caves 1918 | -5/Upper Caves | Build established: Mutant 2021 | -5/Upper Caves | Core integrity fell below 50% 2374 | -5/Upper Caves | Discovered new exit (range 10) 2427 | -5/Upper Caves | Entered another Upper Caves area 2444 | -5/Upper Caves | Core integrity fell below 20% 2472 | -5/Upper Caves | Lost 5 parts (1p1n2u1w) 2478 | -5/Upper Caves | Destroyed by S-27 Virus with Autogun Last Messages --------------- 02374_ EXIT=FOUND 02377_ System corrupted: Component data lost. LOCATION=UNKNOWN GOAL=ESCAPE 02428_ Gyrokinetic Inverter destroyed. 02428_ Critical hit (Burn: +50). 02428_ Critical hit (Burn: +37). 02429_ Lgt. Ion Engine destroyed. 02429_ Critical hit (Burn: +37). 02431_ Adv. Heat Sink destroyed. 02433_ Critical hit (Burn: +37). 02435_ Sml. Storage Unit destroyed. 02440_ Searching scrap... 02440_ Found Mak. Hacking Suite. 02440_ Found Imp. Remote Datajack. 02440_ Found 57 Matter. 02441_ Acquired 57 matter. 02441_ Plasma Rifle destroyed. 02475_ Maul destroyed. 02477_ Targeting Computer destroyed. Map ----- +----------------------------------------------------+ | ?????????????????????????????????????? ?#????????? | | ???????????????????????????????????## ##?????#? | | ?????????????????###???????????????# #???? ? | | ?????????????????? ####???????????? ### ? | | ?????????????????? ????????????? ?? | | ??????????????????? ????????####?# ?# | | ??????????????????? ???????? ### #??# | | ???????????????????? ????????# ## #???? | | ???????????????????? ????????# ## ####?? | | ????????????????????? ????????# # #?? | | ????????????????????? ???????## # "" #??? | | ?????????????????????# ??????## # """" ##?? | | ?????????????????????# ?????## "" #??? | | ?????????????????????# ###### "" ##?? | | ?????????????????????# """" ##?? | | ?????????????????????# """" ##? | | ?????????????????????## ###### """" ## | | ???????????????????### | | ??????????????????## | | ????????????????### ss###### ### ### ## | | ???????????????## sss ##??# ## ## ##?# ##? | | ???????????????# # #??##### ##??# #?# | | ???????????????# # ##?????## #### ### | | ???????????????## # #??????# #?# | | ???????????????# ?## ##?????## ##?## | | ????????????? ? ?# # @ #??????###???## | | ??????????? ?? # # #???????????# | | ?????????# ?? # # #??????????## | | ???????? ??? ? #???????????#### | | ??????? ???? ? ?????????????# | | ??????????? ? ???????????# | | ????????? #?# ########??????????# | | ??????? ???## ### ##?????????????????## | | ???????? ??????## ??? #???????????????????## | | ???????? ????????## ???# ????????????????????? | | ???????????????????# ???? ????????????????????? | | ???????????????????# ???? ????????????????????? | | ???????????????????# ????? #???????????????????? | | ???????????????????# ????? #???????????????????? | | ???????????????????# ????? ???????????????????? | | ???????????????????# ????? ???????????????????? | | ???????????????????# ?????? #???????????????????? | | ???????????????????##???????# ???????????????????? | | ????????????????????????????? ???????????????????? | | ????????????????????????????? ???????????????????? | | ?????????????????????????????????????????????????? | | ?????????????????????????????????????????????????? | | ?????????????????????????????????????????????????? | | ?????????????????????????????????????????????????? | | ?????????????????????????????????????????????????? | +----------------------------------------------------+ Best States ------------- Heat Dissipation 59 Energy Generation 23 Energy Capacity 335 Matter Stores 300 Matter Capacity 350 Sight Range 22 Robot Scan Range 16 Terrain Scan Density 135 Armor Coverage 225 Resistance: EX 25 Weapon Cycling 20 Evasion (%) 55 Targeting Accuracy 10 Kinecelleration 30 Defensive Hacking 14 Item Schematics ----------------- None Robot Schematics ------------------ None Fabricated ------------ Nothing Repaired ---------- Nothing Alien Tech Used ----------------- None Achievements -------------- None Challenges ------------ None Game ------ Seed GuidanceSlugCloak Manual? 0 Play Time 00:28:16 Cumulative 14.6 hours Start 2025.09.27 @ 22:13:35 End 2025.09.27 @ 22:40:49 Sessions 1 Manual Loads 0 Difficulty Rogue Special Mode None Game No. 26 Rogue 26 Adventurer 0 Explorer 0 Win Type - Total 0 Types 0/0/0/0/0/0/0/0/0/0 Lore% 7 Gallery% 19 Achievement% 15 Wizard Run 0 Options --------- Layout 0 ASCII 0 Keyboard 1 Movement Arrows Keybinds 0 Fullscreen 1 Font 24/Smallcaps Map View 76x50 Zoom Use 0% Tactical HUD 1 Map Filters NONE Filters NONE Steam 1 RUN: c9135f66-e11f-40d8-9fd6-31dbd2ce85fa